bitfinex/quotes_BTCUSD_20230901
["timestamp","ask_amount","ask_price","bid_price","bid_amount"]
[1693533856248,0.72578612,26034.0,26033.0,2.2515374]
[1693533857231,0.91019539,26034.0,26033.0,2.2515374]
[1693533858651,0.72578612,26034.0,26033.0,2.2515374]
[1693533859115,0.91020406,26034.0,26033.0,2.2515374]
[1693533863106,0.67974932,26034.0,26033.0,2.2515374]
[1693533863240,0.91020406,26034.0,26033.0,2.2515374]
[1693533865350,0.72578612,26034.0,26033.0,2.2515374]
[1693533866665,0.89523726,26034.0,26033.0,2.2515374]
[1693533866888,0.71078612,26034.0,26033.0,2.2515374]
[1693533867091,0.89523716,26034.0,26033.0,2.2515374]
[1693533869298,0.71078612,26034.0,26033.0,2.2515374]
[1693533869871,0.8952411,26034.0,26033.0,2.2515374]
[1693533870078,0.71078612,26034.0,26033.0,2.2515374]
[1693533870969,0.89524227,26034.0,26033.0,2.2515374]
[1693533871687,0.71078612,26034.0,26033.0,2.2515374]
[1693533871876,0.8952442,26034.0,26033.0,2.2515374]
[1693533872504,0.71078612,26034.0,26033.0,2.2515374]
[1693533885234,0.48033138,26034.0,26033.0,2.2515374]
[1693533887606,0.48033138,26034.0,26033.0,2.248923]
[1693533890572,0.48033138,26034.0,26033.0,1.672732]
[1693533890958,0.73648455,26034.0,26033.0,1.096541]
[1693533891263,0.89705082,26034.0,26033.0,0.074]
[1693533891511,1.1735433,26034.0,26033.0,0.074]
[1693533892879,0.90353752,26034.0,26033.0,0.037]
[1693533893081,1.2147541,26034.0,26033.0,0.061]
[1693533893298,1.51443062,26034.0,26033.0,0.024]
[1693533893488,1.51643062,26034.0,26030.0,0.153748]
[1693533893695,0.25070126,26031.0,26030.0,0.153748]
[1693533893854,0.39763264,26031.0,26030.0,0.153748]
[1693533894236,0.39763264,26031.0,26030.0,0.453748]
[1693533895048,0.39763264,26031.0,26030.0,0.489748]
[1693533895452,0.62446814,26031.0,26030.0,0.489748]
[1693533895870,0.80892387,26031.0,26030.0,0.489748]
[1693533896084,0.80892387,26031.0,26030.0,0.526748]
[1693533896284,0.62446814,26031.0,26030.0,0.526748]
[1693533896686,0.80890146,26031.0,26030.0,0.526748]
[1693533898890,0.5782002,26031.0,26030.0,0.526748]
[1693533901302,0.62446814,26031.0,26030.0,0.526748]
[1693533901721,0.57815748,26031.0,26030.0,0.526748]
[1693533902417,0.57815748,26031.0,26030.0,1.103006]
[1693533904303,0.4312261,26031.0,26030.0,1.103006]
[1693533906447,0.56946778,26031.0,26030.0,1.103006]
[1693533907898,0.4312261,26031.0,26030.0,1.103006]
[1693533908097,0.56946448,26031.0,26030.0,1.103006]
[1693533908424,0.80743383,26031.0,26030.0,1.103006]
[1693533908542,0.62311946,26031.0,26030.0,1.103006]
[1693533908961,0.80742968,26031.0,26030.0,1.103006]
[1693533909373,0.57672842,26031.0,26030.0,1.103006]
[1693533912532,0.43114572,26031.0,26030.0,1.103006]
[1693533912937,0.56935542,26031.0,26030.0,1.103006]
[1693533913158,0.43114572,26031.0,26030.0,1.103006]
[1693533913558,0.57689293,26031.0,26030.0,1.103006]
[1693533914236,0.43114572,26031.0,26030.0,1.103006]
[1693533914912,0.57715105,26031.0,26030.0,1.103006]
[1693533919110,0.56931718,26031.0,26030.0,1.103006]
[1693533920307,0.15817146,26031.0,26030.0,1.103006]
[1693533921283,0.34248168,26031.0,26030.0,1.103006]
[1693533921463,0.15817146,26031.0,26030.0,1.103006]
[1693533923003,0.34248168,26031.0,26030.0,1.103006]
[1693533923623,0.34248454,26031.0,26030.0,1.103006]
[1693533923824,0.20431022,26031.0,26030.0,1.103006]
[1693533925930,0.35036421,26031.0,26030.0,1.103006]
[1693533926140,0.20431022,26031.0,26030.0,1.103006]
[1693533926537,0.35012261,26031.0,26030.0,1.103006]
[1693533930885,0.58082387,26031.0,26030.0,1.103006]
[1693533931285,0.82631607,26031.0,26030.0,1.103006]
[1693533931899,0.64200585,26031.0,26030.0,1.103006]
[1693533932059,0.82632287,26031.0,26030.0,1.103006]
[1693533932265,0.82632346,26031.0,26030.0,1.103006]
[1693533932708,0.64200585,26031.0,26030.0,1.103006]
[1693533934820,0.41130459,26031.0,26030.0,1.103006]
[1693533938831,0.16581239,26031.0,26030.0,1.49009278]
[1693533939038,0.20450035,26031.0,26030.0,2.78080878]
[1693533939247,0.34288198,26031.0,26030.0,2.78080878]
[1693533939450,0.15838163,26031.0,26030.0,2.78080878]
[1693533940812,0.15834817,26031.0,26030.0,2.78080878]
[1693533941733,0.20446423,26031.0,26030.0,2.78080878]
[1693533944369,0.342787,26031.0,26030.0,2.78080878]
[1693533951036,0.342787,26031.0,26030.0,2.81208223]
[1693533951242,0.342787,26031.0,26030.0,1.103006]
[1693533951437,0.20446423,26031.0,26030.0,1.103006]
[1693533951642,0.43504451,26031.0,26030.0,1.103006]
[1693533951840,0.57864984,26031.0,26030.0,1.103006]
[1693533952394,0.39418561,26031.0,26030.0,1.103006]
[1693533952571,0.57859209,26031.0,26030.0,1.103006]
[1693533952950,0.39418561,26031.0,26030.0,1.103006]
[1693533953559,0.43498385,26031.0,26030.0,1.103006]
[1693533953737,0.57858918,26031.0,26030.0,1.103006]
[1693533954082,0.39418561,26031.0,26030.0,0.526748]
[1693533960796,0.39418561,26031.0,26030.0,1.103006]
[1693533969643,0.59969084,26031.0,26030.0,1.103006]
[1693533972758,0.39418561,26031.0,26030.0,0.803006]
[1693533972966,1.7438006,26031.0,26030.0,0.073]
[1693533973164,1.97381239,26031.0,26030.0,0.073]
[1693533973389,2.24691073,26031.0,26030.0,0.073]
[1693533973627,1.97381239,26031.0,26030.0,0.036]
[1693533973958,1.97381239,26031.0,26030.0,0.074]
[1693533974161,1.89132419,26031.0,26030.0,0.038]
[1693533974382,1.89532419,26031.0,26030.0,0.04]
[1693533974592,0.08,26030.0,26028.0,0.20373065]
[1693533974800,0.02,26029.0,26028.0,0.20373065]
[1693533975001,0.16360533,26029.0,26028.0,0.153814]
[1693533975426,0.16360533,26029.0,26026.0,1.152668]
[1693533975616,0.18432608,26027.0,26026.0,0.576332]
[1693533976223,0.20432608,26027.0,26026.0,0.576332]
[1693533976626,0.3425503,26027.0,26026.0,0.576332]
[1693533976754,0.3425503,26027.0,26026.0,0.730146]
[1693533977401,0.3425503,26027.0,26026.0,0.767146]
[1693533977633,0.3425503,26027.0,26026.0,0.777146]
[1693533977764,0.3425503,26027.0,26026.0,0.767146]
[1693533978163,0.15822422,26027.0,26026.0,0.804146]
[1693533982984,0.25031967,26027.0,26026.0,0.804146]
[1693533984049,0.11209545,26027.0,26026.0,0.804146]
[1693533989781,0.30209545,26027.0,26026.0,0.804146]
[1693533993252,0.44031967,26027.0,26026.0,0.804146]
[1693533993454,0.30209545,26027.0,26026.0,0.804146]
[1693534000437,0.44031967,26027.0,26026.0,0.804146]
[1693534000634,0.44031967,26027.0,26026.0,0.227814]
[1693534001782,0.34822422,26027.0,26026.0,0.227814]
[1693534006150,0.5325503,26027.0,26026.0,0.227814]
[1693534009159,0.34822422,26027.0,26026.0,0.227814]
[1693534011640,0.5325503,26027.0,26026.0,0.227814]
[1693534013536,0.39432608,26027.0,26026.0,0.227814]
[1693534014520,0.54314052,26027.0,26026.0,0.227814]
[1693534015286,0.39432608,26027.0,26026.0,0.227814]
[1693534015629,0.54308218,26027.0,26026.0,0.227814]
[1693534017769,0.77348978,26027.0,26026.0,0.227814]
[1693534018394,0.77360188,26027.0,26026.0,0.227814]
[1693534018642,0.5891637,26027.0,26026.0,0.80416]
[1693534021203,0.3587561,26027.0,26026.0,0.80416]
[1693534023845,0.35877874,26027.0,26026.0,0.80416]
[1693534025597,0.35877874,26027.0,26026.0,0.227814]
[1693534035243,0.59458032,26027.0,26026.0,0.227814]
[1693534035459,0.99850446,26027.0,26026.0,0.227814]
[1693534035659,0.72169615,26027.0,26026.0,0.227814]
[1693534035866,0.59458032,26027.0,26026.0,0.227814]
[1693534036469,0.87138863,26027.0,26026.0,0.227814]
[1693534036714,0.59458032,26027.0,26026.0,0.227814]
[1693534063301,0.35877874,26027.0,26026.0,0.227814]
[1693534063723,0.44061848,26027.0,26026.0,1.380506]
[1693534063936,0.58939722,26027.0,26026.0,1.380506]
[1693534064562,0.77389622,26027.0,26026.0,1.380506]
[1693534066954,0.77388599,26027.0,26026.0,1.380506]
[1693534068219,0.77388599,26027.0,26026.0,0.227814]
[1693534068470,0.77388599,26027.0,26026.0,1.380506]
[1693534068897,0.37448877,26027.0,26026.0,2.46213878]
[1693534069115,0.19,26027.0,26026.0,3.98603349]
[1693534069338,0.19,26027.0,26026.0,5.08863022]
[1693534069606,0.19,26027.0,26026.0,3.97225878]
[1693534069816,0.19,26027.0,26026.0,5.0778261]
[1693534070018,0.19,26027.0,26026.0,5.0405861]
[1693534070223,0.19,26027.0,26026.0,5.0134261]
[1693534070428,0.19,26027.0,26026.0,5.0504261]
[1693534070656,0.19,26027.0,26026.0,4.07849878]
[1693534070869,0.19,26027.0,26026.0,4.07357878]
[1693534071081,0.19,26027.0,26026.0,4.50107878]
[1693534071259,0.19,26027.0,26026.0,4.52063878]
[1693534071417,0.19,26027.0,26026.0,4.51019878]
[1693534071617,0.19,26027.0,26026.0,4.50743878]
[1693534071818,0.19,26027.0,26026.0,4.50647878]
[1693534072045,0.19,26027.0,26026.0,4.50539878]
[1693534072223,0.19,26027.0,26026.0,4.46815878]
[1693534072424,0.19,26027.0,26026.0,4.46515878]
[1693534072693,0.19,26027.0,26026.0,4.50143878]
[1693534072911,0.19,26027.0,26026.0,4.50575878]
[1693534073104,0.19,26027.0,26026.0,4.51307878]
[1693534073309,0.19,26027.0,26026.0,4.47319878]
[1693534073493,0.19,26027.0,26026.0,4.47127878]
[1693534073667,0.15880132,26027.0,26026.0,4.50815878]
[1693534074009,0.15880132,26027.0,26026.0,4.48435878]
[1693534074135,0.15880132,26027.0,26026.0,4.48183878]
[1693534074505,0.15880132,26027.0,26026.0,4.51343878]
[1693534074726,0.15880132,26027.0,26026.0,4.51199878]
[1693534074932,0.15880132,26027.0,26026.0,4.46119878]
[1693534075155,0.15880132,26027.0,26026.0,4.49723878]
[1693534075360,0.15880132,26027.0,26026.0,4.49675878]
[1693534075567,0.15880132,26027.0,26026.0,4.45951878]
[1693534075775,0.15880132,26027.0,26026.0,4.49651878]
[1693534075954,0.15880132,26027.0,26026.0,4.49639878]
[1693534076159,0.15880132,26027.0,26026.0,4.68814878]
[1693534076352,0.15880132,26027.0,26026.0,4.68790878]
[1693534076717,0.15880132,26027.0,26026.0,4.71745954]
[1693534076919,0.15880132,26027.0,26026.0,4.71913954]
[1693534077172,0.15880132,26027.0,26026.0,4.52522954]
[1693534077503,0.15880132,26027.0,26026.0,3.94616954]
[1693534077695,0.15880132,26027.0,26026.0,3.92198954]
[1693534077903,0.15880132,26027.0,26026.0,3.92144954]
[1693534078333,0.15880132,26027.0,26026.0,3.92258954]
[1693534078532,0.15880132,26027.0,26026.0,3.92528954]
[1693534078710,0.15880132,26027.0,26026.0,3.92834954]
[1693534078955,0.15880132,26027.0,26026.0,3.93332954]
[1693534079175,0.15880132,26027.0,26026.0,3.93440954]
[1693534079368,0.15880132,26027.0,26026.0,3.93764954]
[1693534079690,0.15880132,26027.0,26026.0,3.93812954]
[1693534079909,0.15880132,26027.0,26026.0,3.99168532]
[1693534080116,0.15880132,26027.0,26026.0,3.85474532]
[1693534080350,0.15880132,26027.0,26026.0,3.93486532]
[1693534080553,0.15880132,26027.0,26026.0,3.92940532]
[1693534080779,0.15880132,26027.0,26026.0,3.92676532]
[1693534081024,0.15880132,26027.0,26026.0,3.96424532]
[1693534081245,0.15880132,26027.0,26026.0,3.90850532]
[1693534081389,0.15880132,26027.0,26026.0,3.90904532]
[1693534081596,0.15880132,26027.0,26026.0,3.90544532]
[1693534081912,0.15880132,26027.0,26026.0,3.91102532]
[1693534082128,0.15880132,26027.0,26026.0,3.91108532]
[1693534082327,0.11224922,26031.0,26027.0,0.02]
[1693534082536,0.02,26031.0,26029.0,0.1182]
[1693534082737,0.1862,26031.0,26030.0,2.41586078]
[1693534084174,0.1862,26031.0,26030.0,2.45286078]
[1693534084374,0.1862,26031.0,26030.0,2.48986078]
[1693534086736,0.27827559,26031.0,26030.0,2.48986078]
[1693534088752,0.1862,26031.0,26030.0,2.48986078]
[1693534089706,0.27827559,26031.0,26030.0,2.48986078]
[1693534090602,0.27827559,26031.0,26030.0,1.91360278]
[1693534090777,0.27827559,26031.0,26030.0,0.950258]
[1693534091210,0.43827559,26031.0,26030.0,0.950258]
[1693534091419,0.57638897,26031.0,26030.0,0.950258]
[1693534092028,0.48431338,26031.0,26030.0,0.913258]
[1693534092602,0.48431338,26031.0,26030.0,0.950258]
[1693534093054,0.48431338,26031.0,26030.0,0.913258]
[1693534093467,0.75092664,26031.0,26030.0,0.074]
[1693534093718,0.93507782,26031.0,26030.0,0.074]
[1693534093925,0.93507782,26031.0,26030.0,0.111]
[1693534094337,1.63049735,26031.0,26030.0,0.111]
[1693534094537,1.86068633,26031.0,26030.0,0.111]
[1693534095091,1.86068633,26031.0,26030.0,0.074]
[1693534095296,1.86068633,26031.0,26027.0,0.576311]
[1693534095517,0.02,26028.0,26027.0,0.576311]
[1693534095697,0.02,26028.0,26027.0,0.876311]
[1693534096464,0.02,26028.0,26027.0,0.902311]
[1693534096667,0.02,26028.0,26027.0,0.939311]
[1693534096869,0.02,26028.0,26027.0,0.913311]
[1693534097209,0.021,26028.0,26027.0,0.950311]
[1693534101580,0.11306489,26028.0,26027.0,0.074]
[1693534105556,0.25116222,26028.0,26027.0,0.074]
[1693534105896,0.15909733,26028.0,26027.0,0.074]
[1693534108636,0.35948394,26028.0,26027.0,0.074]
[1693534108808,0.54519625,26028.0,26027.0,0.074]
[1693534109772,0.77538523,26028.0,26027.0,0.074]
[1693534110604,0.54519625,26028.0,26027.0,0.074]
[1693534110982,0.34480964,26028.0,26027.0,1.526648]
[1693534111195,0.2512935,26028.0,26027.0,2.102972]
[1693534111946,0.11311698,26028.0,26027.0,2.102972]
[1693534118582,0.2512935,26028.0,26027.0,2.102972]
[1693534120192,0.11311698,26028.0,26027.0,2.102972]
[1693534122406,0.2512935,26028.0,26027.0,2.102972]
[1693534123430,0.11311698,26028.0,26027.0,2.102972]
[1693534123646,0.2512935,26028.0,26027.0,2.102972]
[1693534131586,0.15917652,26028.0,26027.0,2.102972]
[1693534134069,0.3433277,26028.0,26027.0,2.102972]
[1693534136630,0.20515118,26028.0,26027.0,2.102972]
[1693534137556,0.34349995,26028.0,26027.0,2.102972]
[1693534137714,0.20515118,26028.0,26027.0,2.102972]
[1693534137991,0.34350616,26028.0,26027.0,2.102972]
[1693534138197,0.20515118,26028.0,26027.0,2.102972]
[1693534138546,0.34350642,26028.0,26027.0,2.102972]
[1693534139365,0.20515118,26028.0,26027.0,2.102972]
[1693534139990,0.34351092,26028.0,26027.0,2.102972]
[1693534141057,0.34351017,26028.0,26027.0,2.102972]
[1693534141612,0.3435093,26028.0,26027.0,2.102972]
[1693534141801,0.20515118,26028.0,26027.0,2.102972]
[1693534142978,0.57485271,26028.0,26027.0,2.102972]
[1693534149691,0.57485271,26028.0,26027.0,1.526648]
[1693534150308,0.52485271,26028.0,26027.0,1.526648]
[1693534150654,0.52485271,26028.0,26027.0,1.53801646]
[1693534155767,0.38970153,26028.0,26027.0,1.53801646]
[1693534172007,0.38970153,26028.0,26027.0,1.526648]
[1693534179530,0.38970153,26028.0,26027.0,2.102972]
[1693534184146,0.38970153,26028.0,26027.0,2.122272]
[1693534186864,0.54970153,26028.0,26027.0,2.122272]
[1693534198022,0.31951255,26028.0,26027.0,2.122272]
[1693534202185,0.31451255,26028.0,26027.0,2.122272]
[1693534202978,0.56011975,26028.0,26027.0,0.0933]
[1693534203186,1.10459587,26028.0,26027.0,0.0933]
[1693534203794,1.10459587,26028.0,26027.0,0.037]
[1693534204226,1.10559587,26028.0,26027.0,0.074]
[1693534204644,1.10459587,26028.0,26026.0,0.153814]
[1693534204851,0.1382,26027.0,26026.0,0.153814]
[1693534205681,0.1382,26027.0,26024.0,0.576382]
[1693534205882,0.02,26024.0,26023.0,1.152804]
[1693534205998,0.15832475,26024.0,26023.0,1.152804]
[1693534206394,0.25052938,26024.0,26023.0,1.152804]
[1693534207272,0.11220463,26024.0,26023.0,1.152804]
[1693534207506,0.25152938,26024.0,26023.0,1.189804]
[1693534207686,0.11320463,26024.0,26023.0,1.189804]
[1693534208064,0.11320463,26024.0,26023.0,1.343636]
[1693534208267,0.11320463,26024.0,26023.0,1.380636]
[1693534208472,0.11320463,26024.0,26023.0,0.227832]
[1693534208666,0.51963712,26024.0,26023.0,0.227832]
[1693534209773,0.38131237,26024.0,26023.0,0.227832]
[1693534210958,0.42743249,26024.0,26023.0,0.227832]
[1693534211366,0.51959071,26024.0,26023.0,0.227832]
[1693534212420,0.42743249,26024.0,26023.0,0.227832]
[1693534212617,0.61186657,26024.0,26023.0,0.227832]
[1693534212821,0.34375883,26024.0,26023.0,0.227832]
[1693534213023,1.69085119,26024.0,26023.0,0.074]
[1693534213849,1.68985119,26024.0,26023.0,0.037]
[1693534214064,0.1,26023.0,26021.0,0.20357914]
[1693534214264,0.15816334,26022.0,26021.0,0.20357914]
[1693534214471,0.15816334,26022.0,26021.0,0.153854]
[1693534215450,0.15816334,26022.0,26021.0,0.165854]
[1693534215649,0.25020652,26022.0,26021.0,0.165854]
[1693534215919,0.15816334,26022.0,26021.0,0.012]
[1693534216329,0.25018968,26022.0,26021.0,0.012]
[1693534216738,0.25118968,26022.0,26021.0,0.049]
[1693534217350,0.27302634,26022.0,26021.0,0.049]
[1693534218499,0.41118968,26022.0,26021.0,0.049]
[1693534219474,0.27302634,26022.0,26021.0,0.049]
[1693534222273,0.757435,26022.0,26021.0,0.049]
[1693534223516,0.181,26022.0,26021.0,0.049]
[1693534241718,0.27302634,26022.0,26021.0,0.049]
[1693534245854,0.41118968,26022.0,26021.0,0.049]
[1693534246628,0.27302634,26022.0,26021.0,0.32203471]
[1693534246843,0.161,26022.0,26021.0,2.84349249]
[1693534247055,0.161,26022.0,26021.0,3.82784186]
[1693534247248,0.161,26022.0,26021.0,2.71619672]
[1693534247473,0.161,26022.0,26021.0,2.71589672]
[1693534247726,0.161,26022.0,26021.0,2.71037672]
[1693534247940,0.16,26022.0,26021.0,2.67325672]
[1693534248127,0.16,26022.0,26021.0,2.71269672]
[1693534248272,0.16,26022.0,26021.0,2.71089672]
[1693534248473,0.16,26022.0,26021.0,2.71539672]
[1693534248671,0.16,26022.0,26021.0,2.69643672]
[1693534248880,0.16,26022.0,26021.0,2.73343672]
[1693534249083,0.16,26022.0,26021.0,2.72143672]
[1693534249287,0.16,26022.0,26021.0,2.72131672]
[1693534249513,0.16,26022.0,26021.0,2.75807672]
[1693534249668,0.16,26022.0,26021.0,2.75783672]
[1693534249873,0.16,26022.0,26021.0,2.75189672]
[1693534250168,0.16,26022.0,26021.0,2.74811672]
[1693534250382,0.16,26022.0,26021.0,2.74589672]
[1693534250587,0.16,26022.0,26021.0,2.74505672]
[1693534251071,0.16,26022.0,26021.0,2.74457672]
[1693534251206,0.16,26022.0,26021.0,2.74451672]
[1693534251480,0.16,26022.0,26021.0,2.74445672]
[1693534251875,0.16,26022.0,26021.0,2.8012285]
[1693534252125,0.16,26022.0,26021.0,2.8008685]
[1693534252483,0.16,26022.0,26021.0,2.8000885]
[1693534252683,0.16,26022.0,26021.0,2.7996685]
[1693534252885,0.16,26022.0,26021.0,2.7993685]
[1693534253203,0.16,26022.0,26021.0,2.7993085]
[1693534253427,0.16,26022.0,26021.0,2.7991285]
[1693534253627,0.16,26022.0,26021.0,2.7990685]
[1693534253784,0.16,26022.0,26021.0,2.7976285]
[1693534253984,0.16,26022.0,26021.0,2.7974485]
[1693534254158,0.16,26022.0,26021.0,2.7972685]
[1693534254362,0.16,26022.0,26021.0,2.7970885]
[1693534254563,0.16,26022.0,26021.0,2.7969085]
[1693534254766,0.16,26022.0,26021.0,2.7963085]
[1693534254974,0.16,26022.0,26021.0,2.7961285]
[1693534255194,0.16,26022.0,26021.0,2.7930685]
[1693534255395,0.16,26022.0,26021.0,2.7928285]
[1693534255611,0.16,26022.0,26021.0,2.7929485]
[1693534255814,0.16,26022.0,26021.0,2.7930685]
[1693534256135,0.16,26022.0,26021.0,2.7933085]
[1693534256333,0.16,26022.0,26021.0,2.7931885]
[1693534256737,0.16,26022.0,26021.0,2.7937885]
[1693534256922,0.16,26022.0,26021.0,2.7936685]
[1693534257120,0.16,26022.0,26021.0,2.7934885]
[1693534257325,0.16,26022.0,26021.0,2.7945685]
[1693534257636,0.16,26022.0,26021.0,2.7941485]
[1693534257862,0.16,26022.0,26021.0,2.7940285]
[1693534258061,0.16,26022.0,26021.0,2.7939685]
[1693534258263,0.16,26022.0,26021.0,2.7938485]
[1693534258482,0.16,26022.0,26021.0,2.7937285]
[1693534258683,0.16,26022.0,26021.0,2.7918085]
[1693534258842,0.16,26022.0,26021.0,2.7919285]
[1693534259048,0.16,26022.0,26021.0,2.7918685]
[1693534259284,0.16,26022.0,26021.0,2.7937285]
[1693534259489,0.16,26022.0,26021.0,2.7996685]
[1693534259711,0.16,26022.0,26021.0,2.7991285]
[1693534259916,0.16,26022.0,26021.0,2.7981685]
[1693534260111,0.16,26022.0,26021.0,2.7982285]
[1693534260361,0.16,26022.0,26021.0,2.7991885]
[1693534260497,0.16,26022.0,26021.0,2.7989485]
[1693534260878,0.16,26022.0,26021.0,2.7966085]
[1693534261088,0.16,26022.0,26021.0,2.7967285]
[1693534261292,0.16,26022.0,26021.0,2.7964885]
[1693534261468,0.16,26022.0,26021.0,2.7937885]
[1693534261694,0.16,26022.0,26021.0,2.7255085]
[1693534263272,0.16,26022.0,26021.0,2.66711672]
[1693534263474,0.16,26022.0,26021.0,2.221571]
[1693534264319,0.16,26022.0,26021.0,2.184571]
[1693534264492,0.16,26022.0,26021.0,2.147571]
[1693534264671,0.16,26022.0,26021.0,2.184571]
[1693534265213,0.16,26022.0,26021.0,2.147571]
[1693534265621,0.16,26022.0,26021.0,2.221571]
[1693534266030,0.16,26022.0,26021.0,2.184571]
[1693534266238,0.16,26022.0,26021.0,2.221571]
[1693534279547,0.18,26022.0,26021.0,2.103371]
[1693534279753,0.31816334,26022.0,26021.0,0.650457]
[1693534280576,0.31816334,26022.0,26021.0,0.613457]
[1693534280799,0.41030005,26022.0,26021.0,1.215914]
[1693534281129,0.41030005,26022.0,26021.0,1.189914]
[1693534281529,0.41030005,26022.0,26021.0,1.178914]
[1693534281735,0.41230005,26022.0,26021.0,1.178914]
[1693534281981,0.41030005,26022.0,26021.0,1.178914]
[1693534282790,0.41230005,26022.0,26021.0,0.602457]
[1693534283140,0.32016334,26022.0,26021.0,0.602457]
[1693534287314,0.50438113,26022.0,26021.0,0.602457]
[1693534289680,0.50438113,26022.0,26021.0,0.026]
[1693534293794,0.50438113,26022.0,26021.0,0.602457]
[1693534294531,0.36621779,26022.0,26021.0,0.602457]
[1693534294737,0.50452588,26022.0,26021.0,0.602457]
[1693534295423,0.36621779,26022.0,26021.0,0.602457]
[1693534295845,0.50452947,26022.0,26021.0,0.602457]
[1693534296034,0.36621779,26022.0,26021.0,0.026]
[1693534297206,0.51226209,26022.0,26021.0,0.026]
[1693534298839,0.36621779,26022.0,26021.0,0.026]
[1693534299379,0.51233744,26022.0,26021.0,0.026]
[1693534304413,0.74260968,26022.0,26021.0,0.026]
[1693534306518,0.74260968,26022.0,26021.0,0.602457]
[1693534308229,0.55839189,26022.0,26021.0,0.602457]
[1693534318293,0.32811965,26022.0,26021.0,0.602457]
[1693534318762,0.32811965,26022.0,26021.0,0.026]
[1693534321706,1.61127962,26022.0,26021.0,0.026]
[1693534321935,2.18771462,26022.0,26021.0,0.026]
[1693534323947,1.61127962,26022.0,26021.0,0.026]
[1693534325383,1.48098965,26022.0,26021.0,0.026]
[1693534328750,1.75721642,26022.0,26021.0,0.026]
[1693534328952,1.8875613,26022.0,26021.0,0.026]
[1693534331415,1.61133453,26022.0,26021.0,0.026]
[1693534333622,1.61142096,26022.0,26021.0,0.026]
[1693534334798,1.99850774,26022.0,26021.0,0.026]
[1693534338111,1.86807643,26022.0,26021.0,0.026]
[1693534347090,1.99856808,26022.0,26021.0,0.026]
[1693534360572,2.27479485,26022.0,26021.0,0.026]
[1693534388521,2.62430115,26022.0,26021.0,0.026]
[1693534389895,2.22098717,26022.0,26021.0,0.026]
[1693534394872,3.68650776,26022.0,26021.0,0.026]
[1693534395538,3.68650776,26022.0,26020.0,189.0]
[1693534395761,1.8997687,26021.0,26020.0,189.0]
[1693534395964,3.6291397,26021.0,26020.0,189.0]
[1693534396138,3.70554536,26021.0,26020.0,189.0]
[1693534396610,3.70554536,26021.0,26020.0,189.003]
[1693534397472,3.39919383,26021.0,26020.0,189.006]
[1693534397857,3.39919383,26021.0,26020.0,189.003]
[1693534398322,3.39919383,26021.0,26020.0,189.006]
[1693534398323,3.40619383,26021.0,26020.0,189.006]
[1693534400854,3.68330218,26021.0,26020.0,189.006]
[1693534408970,3.46022633,26021.0,26020.0,189.006]
[1693534417441,3.69256027,26021.0,26020.0,189.006]
[1693534417848,3.46022633,26021.0,26020.0,189.006]
[1693534418680,3.01200115,26021.0,26020.0,189.006]
[1693534420286,3.28842451,26021.0,26020.0,189.006]
[1693534420496,3.01200115,26021.0,26020.0,189.006]
[1693534420634,3.28843215,26021.0,26020.0,189.006]
[1693534421350,3.01200115,26021.0,26020.0,189.006]
[1693534422972,3.64069224,26021.0,26020.0,189.006]
[1693534434645,3.95204377,26021.0,26020.0,189.006]
[1693534440340,3.93204377,26021.0,26020.0,189.006]
[1693534440547,3.62069224,26021.0,26020.0,189.006]
[1693534444777,3.39610115,26021.0,26020.0,189.006]
[1693534445890,3.22692561,26021.0,26020.0,189.006]
[1693534450453,3.18692561,26021.0,26020.0,189.006]
[1693534450652,3.22692561,26021.0,26020.0,189.006]
[1693534452978,3.18692561,26021.0,26020.0,189.006]
[1693534453396,3.16692561,26021.0,26020.0,189.006]
[1693534456405,3.16691529,26021.0,26020.0,189.006]
[1693534456632,2.85559549,26021.0,26020.0,189.006]
[1693534457611,2.92857956,26021.0,26020.0,189.006]
[1693534463631,3.23991455,26021.0,26020.0,189.006]
[1693534463832,3.16693048,26021.0,26020.0,189.006]
[1693534477059,1.87581648,26021.0,26020.0,189.006]
[1693534477286,0.98802449,26021.0,26020.0,189.006]
[1693534477494,0.56093771,26021.0,26020.0,189.006]
[1693534478576,0.8177067,26021.0,26020.0,189.006]
[1693534479010,0.58538029,26021.0,26020.0,189.006]
[1693534479416,0.64538029,26021.0,26020.0,189.006]
[1693534480117,1.45336555,26021.0,26020.0,189.006]
[1693534480476,1.22183729,26021.0,26020.0,189.006]
[1693534480679,1.17657697,26021.0,26020.0,189.006]
[1693534483011,1.22175138,26021.0,26020.0,189.006]
[1693534483238,0.58529438,26021.0,26020.0,189.006]
[1693534483441,0.3086113,26021.0,26020.0,189.582479]
[1693534483955,0.58529438,26021.0,26020.0,189.006]
[1693534484793,0.3036113,26021.0,26020.0,189.003]
[1693534485004,0.57829438,26021.0,26020.0,189.003]
[1693534485383,0.3026113,26021.0,26020.0,189.003]
[1693534485581,0.3076113,26021.0,26020.0,189.006]
[1693534485785,0.3016113,26021.0,26020.0,189.003]
[1693534486051,0.3076113,26021.0,26020.0,189.006]
[1693534486202,0.58429438,26021.0,26020.0,189.006]
[1693534486386,0.17711965,26021.0,26020.0,190.158958]
[1693534486782,0.17711965,26021.0,26020.0,189.582479]
[1693534488644,0.17711965,26021.0,26020.0,190.158958]
[1693534489048,0.17711965,26021.0,26020.0,189.582479]
[1693534489846,0.17711965,26021.0,26020.0,190.158958]
[1693534491374,0.40757081,26021.0,26020.0,190.158958]
[1693534491586,0.40757081,26021.0,26020.0,190.89209594]
[1693534491938,0.36149195,26021.0,26020.0,190.89209594]
[1693534492184,0.35549195,26021.0,26020.0,191.04295194]
[1693534492402,0.2043723,26021.0,26020.0,191.03995194]
[1693534492828,0.34763578,26021.0,26020.0,191.04495194]
[1693534493030,0.34963578,26021.0,26020.0,191.04195194]
[1693534493407,0.16526348,26021.0,26020.0,191.04195194]
[1693534493831,0.16526348,26021.0,26020.0,190.92375194]
[1693534494478,0.17026348,26021.0,26020.0,190.92675194]
[1693534494682,0.16326348,26021.0,26020.0,190.92475194]
[1693534494858,0.17026348,26021.0,26020.0,190.92575194]